bitfinex-derivatives/quotes_SOLF0:USTF0_20250731
["timestamp","ask_amount","ask_price","bid_price","bid_amount"]
[1753976322488,4.01691349,177.14,177.08,33.27182227]
[1753976322686,4.01691349,177.14,177.08,38.91892227]
[1753976322687,3.13,177.13,177.08,38.91892227]
[1753976322886,3.13,177.13,177.08,33.27182227]
[1753976323696,5.6464,177.11,177.08,33.27182227]
[1753976323892,3.13,177.1,177.08,33.27182227]
[1753976325092,3.13,177.1,177.03,6.24824618]
[1753976325290,3.13,177.1,177.02,10.26515967]
[1753976325896,3.13,177.09,177.02,4.01691349]
[1753976327184,3.13,177.07,177.0,115.00515967]
[1753976327396,3.13,177.07,176.98,389.56515967]
[1753976327693,3.13,177.03,176.98,383.31691349]
[1753976328600,3.13,177.03,177.01,5.6495]
[1753976328799,3.13,177.05,176.98,383.31691349]
[1753976330195,8.7783,177.05,176.98,383.31691349]
[1753976330500,3.13,177.05,176.98,383.31691349]
[1753976330998,3.13,177.05,177.01,5.6494]
[1753976331299,3.13,177.04,177.01,5.6494]
[1753976331496,3.13,177.05,177.02,4.01691349]
[1753976331895,3.13,177.06,177.02,4.01691349]
[1753976332301,3.13,177.06,177.03,5.6489]
[1753976332693,3.13,177.06,177.02,4.01691349]
[1753976333296,3.13,177.06,177.04,5.6486]
[1753976335288,3.13,177.09,177.02,4.01691349]
[1753976335494,3.13,177.09,177.04,4.01691349]
[1753976337099,3.13,177.08,177.04,4.01691349]
[1753976337896,3.13,177.08,177.06,5.6478]
[1753976338297,3.13,177.08,177.04,4.01691349]
[1753976338909,3.19,177.09,177.08,5.6473]
[1753976339808,3.19,177.09,177.04,4.01691349]
[1753976340212,5.6477,177.07,177.03,5.6486]
[1753976340409,3.19,177.06,177.02,4.01691349]
[1753976340617,3.19,177.06,177.04,4.01691349]
[1753976340811,3.19,177.08,177.04,4.01691349]
[1753976341009,3.19,177.07,177.06,4.01691349]
[1753976341210,3.19,177.07,177.06,9.66491349]
[1753976341817,5.6461,177.12,177.09,5.647]
[1753976342019,4.01691349,177.15,177.09,5.647]
[1753976342313,3.19,177.16,177.08,5.6471]
[1753976342517,0.98293978,177.18,177.07,4.01691349]
[1753976342518,3.19,177.14,177.07,4.01691349]
[1753976343120,3.19,177.11,177.08,5.6473]
[1753976343311,3.19,177.11,177.07,4.01691349]
[1753976343510,3.19,177.11,177.08,5.6473]
[1753976343712,3.19,177.12,177.09,4.01691349]
[1753976343911,3.19,177.11,177.09,4.01691349]
[1753976344116,3.19,177.1,177.01,104.74]
[1753976344317,3.19,177.1,177.09,9.66391349]
[1753976345314,3.19,177.1,177.07,4.01691349]
[1753976346822,4.01691349,177.15,177.08,5.6473]
[1753976347017,3.19,177.1,177.07,4.01691349]
[1753976348221,4.01691349,177.17,177.09,4.01691349]
[1753976348418,3.19,177.1,177.09,4.01691349]
[1753976348824,3.19,177.1,177.09,9.66381349]
[1753976349018,3.19,177.14,177.09,4.01691349]
[1753976349324,3.19,177.16,177.11,4.01691349]
[1753976349720,3.19,177.16,177.09,4.01691349]
[1753976350221,5.6455,177.14,177.1,5.6466]
[1753976350528,3.19,177.13,177.09,4.01691349]
[1753976351723,3.19,177.13,177.1,5.6466]
[1753976352230,3.19,177.13,177.07,4.01691349]
[1753976352822,3.19,177.1,177.07,4.01691349]
[1753976353223,3.19,177.1,177.02,6.24824618]
[1753976353422,3.19,177.08,177.03,4.01691349]
[1753976353923,3.19,177.08,177.05,5.6481]
[1753976354123,11.2889,177.18,177.03,4.01691349]
[1753976354323,3.19,177.1,177.05,4.01691349]
[1753976355525,3.19,177.1,177.07,5.6474]
[1753976356524,4.01691349,177.15,177.07,4.01691349]
[1753976356715,4.01691349,177.15,177.03,6.24824618]
[1753976356716,3.19,177.14,177.09,4.01691349]
[1753976357123,5.6458,177.13,177.09,9.66361349]
[1753976357321,3.19,177.16,177.09,4.01691349]
[1753976357923,4.01691349,177.17,177.11,5.6464]
[1753976358124,3.19,177.14,177.09,4.01691349]
[1753976358522,3.19,177.13,177.09,4.01691349]
[1753976359624,3.19,177.13,177.1,5.6466]
[1753976359828,5.6463,177.12,177.07,4.01691349]
[1753976360027,3.19,177.11,177.07,4.01691349]
[1753976360218,3.19,177.11,177.05,4.01691349]
[1753976360624,3.19,177.11,177.08,5.6472]
[1753976361023,3.19,177.11,177.05,4.01691349]
[1753976361626,3.19,177.12,177.07,4.01691349]
[1753976361829,3.19,177.16,177.09,4.01691349]
[1753976362930,3.19,177.16,177.11,5.6463]
[1753976363331,5.6457,177.14,177.1,5.6466]
[1753976363525,3.19,177.13,177.09,4.01691349]
[1753976363830,5.6457,177.14,177.1,5.6464]
[1753976364033,3.19,177.11,177.09,4.01691349]
[1753976364626,3.19,177.11,177.1,5.6467]
[1753976366329,4.01691349,177.17,177.13,5.6456]
[1753976366824,3.19,177.16,177.13,5.6456]
[1753976367034,3.19,177.15,177.12,5.646]
[1753976367534,8.8354,177.15,177.12,5.646]
[1753976367837,3.19,177.14,177.12,5.646]
[1753976368132,8.8354,177.14,177.12,5.646]
[1753976368333,3.24,177.13,177.11,5.6462]
[1753976368833,3.24,177.12,177.1,5.6465]
[1753976369434,3.24,177.12,177.08,4.01691349]
[1753976369435,5.6462,177.12,177.09,5.6469]
[1753976369630,3.24,177.11,177.09,5.6469]
[1753976369832,8.8864,177.11,177.09,5.6469]
[1753976370034,3.24,177.1,177.08,5.6472]
[1753976371134,8.8867,177.1,177.08,5.6472]
[1753976371335,3.24,177.09,177.08,5.6472]
[1753976374433,4.01691349,177.17,177.11,5.6461]
[1753976374637,4.01691349,177.17,177.09,4.01691349]
[1753976374638,3.24,177.16,177.09,4.01691349]
[1753976375034,8.885,177.16,177.09,4.01691349]
[1753976375238,3.24,177.15,177.09,4.01691349]
[1753976375741,5.6456,177.14,177.1,5.6466]
[1753976376137,3.24,177.13,177.1,5.6466]
[1753976376630,4.01691349,177.13,177.07,6.24824618]
[1753976376832,3.24,177.12,177.05,10.26515967]
[1753976377342,3.24,177.11,177.08,5.6471]
[1753976377739,3.24,177.11,177.09,5.647]
[1753976378442,3.24,177.12,177.1,5.6467]
[1753976379743,3.24,177.12,177.11,5.6464]
[1753976382049,109.63968672,177.21,177.11,4.01691349]
[1753976382239,5.6443,177.18,177.13,4.01691349]
[1753976382542,3.24,177.17,177.15,5.6449]
[1753976382935,3.24,177.16,177.15,4.01691349]
[1753976383141,3.24,177.2,177.15,4.01691349]
[1753976383337,3.24,177.18,177.17,4.01691349]
[1753976383546,3.24,177.18,177.17,9.66141349]
[1753976383739,4.99940926,177.25,177.17,4.01691349]
[1753976383939,3.24,177.19,177.17,4.01691349]
[1753976384142,3.24,177.19,177.18,5.6441]
[1753976386655,3.24,177.19,177.17,9.66131349]
[1753976386949,3.24,177.19,177.17,4.01691349]
[1753976387751,3.24,177.19,177.18,5.6441]
[1753976387946,3.24,177.19,177.17,4.01691349]
[1753976388547,3.24,177.19,177.18,5.6441]
[1753976390552,3.24,177.24,177.17,4.01691349]
[1753976390752,3.24,177.24,177.19,4.01691349]
[1753976391053,8.8825,177.24,177.2,5.6434]
[1753976391348,3.24,177.23,177.19,4.01691349]
[1753976391656,3.24,177.23,177.2,5.6433]
[1753976391850,8.8826,177.23,177.2,5.6433]
[1753976392052,3.24,177.22,177.2,5.6433]
[1753976393052,5.6423,177.24,177.21,5.6431]
[1753976393253,3.24,177.22,177.21,5.6431]
[1753976394148,3.24,177.22,177.2,5.6434]
[1753976395359,3.24,177.22,177.21,5.6432]
[1753976396952,3.24,177.24,177.21,4.01691349]
[1753976397554,3.24,177.24,177.22,5.6426]
[1753976397956,3.24,177.24,177.23,5.6425]
[1753976399653,3.03,177.3,177.23,5.6425]
[1753976399857,5.6413,177.27,177.23,5.6425]
[1753976400060,3.03,177.26,177.23,5.6425]
[1753976400358,8.6716,177.26,177.23,5.6425]
[1753976400558,3.03,177.25,177.23,5.6425]
[1753976400760,3.03,177.28,177.23,4.01691349]
[1753976401554,3.03,177.28,177.17,11.2889]
[1753976401753,3.03,177.28,177.26,5.6414]
[1753976402861,3.03,177.28,177.25,9.65871349]
[1753976403058,3.03,177.28,177.23,4.01691349]
[1753976403667,104.54,177.31,177.23,4.01691349]
[1753976403860,3.03,177.3,177.25,4.01691349]
[1753976404258,8.6706,177.3,177.26,5.6415]
[1753976404457,3.03,177.29,177.26,5.6415]
[1753976405360,3.03,177.29,177.27,5.6412]
[1753976406159,3.03,177.28,177.26,5.6415]
[1753976406362,3.03,177.28,177.17,11.2889]
[1753976406558,3.03,177.28,177.23,4.01691349]
[1753976407162,3.03,177.28,177.17,11.2889]
[1753976407464,3.03,177.27,177.24,5.6419]
[1753976407859,3.03,177.27,177.25,5.6418]
[1753976408064,3.03,177.27,177.24,4.01691349]
[1753976408565,3.03,177.27,177.25,5.6417]
[1753976409062,5.6416,177.26,177.23,4.01691349]
[1753976409259,3.03,177.25,177.21,4.01691349]
[1753976409667,3.03,177.25,177.23,5.6424]
[1753976410270,3.03,177.25,177.22,5.6428]
[1753976411769,3.03,177.25,177.21,5.6431]
[1753976411969,4.01691349,177.24,177.16,4.01691349]
[1753976412166,3.03,177.22,177.16,4.01691349]
[1753976412767,3.03,177.22,177.2,5.6435]
[1753976413163,108.49691349,177.29,177.2,4.01691349]
[1753976413471,3.03,177.22,177.21,5.6432]
[1753976414571,3.03,177.24,177.2,4.01691349]
[1753976414768,3.03,177.24,177.22,4.01691349]
[1753976414975,3.03,177.24,177.23,5.6425]
[1753976415867,3.03,177.27,177.24,5.642]
[1753976416274,3.03,177.27,177.17,34.27041846]
[1753976416470,3.03,177.27,177.21,4.01691349]
[1753976416870,4.01691349,177.27,177.19,4.01691349]
[1753976417079,3.03,177.26,177.19,4.01691349]
[1753976417373,3.03,177.26,177.23,5.6423]
[1753976417675,3.03,177.26,177.19,4.01691349]
[1753976417874,3.03,177.26,177.24,5.642]
[1753976419173,3.03,177.26,177.25,5.6419]
[1753976419473,3.03,177.28,177.25,4.01691349]
[1753976419676,5.6402,177.31,177.27,5.641]
[1753976419977,3.03,177.31,177.25,4.01691349]
[1753976420172,4.01691349,177.31,177.23,4.01691349]
[1753976420372,3.03,177.29,177.26,5.6416]
[1753976421075,3.03,177.28,177.25,5.6418]
[1753976421385,3.03,177.28,177.21,4.01691349]
[1753976421875,3.03,177.27,177.24,5.6422]
[1753976422674,8.6713,177.27,177.24,5.6422]
[1753976422877,3.03,177.26,177.23,5.6425]
[1753976423273,3.03,177.26,177.24,5.6421]
[1753976423779,3.03,177.28,177.23,4.01691349]
[1753976423977,3.03,177.27,177.23,4.01691349]
[1753976424282,3.03,177.27,177.26,5.6416]
[1753976424778,4.01691349,177.31,177.19,6.24824618]
[1753976424987,4.01691349,177.28,177.2,4.01691349]
[1753976425177,3.03,177.27,177.2,4.01691349]
[1753976425378,3.03,177.25,177.23,5.6425]
[1753976425978,3.03,177.25,177.18,4.01691349]
[1753976425979,3.03,177.25,177.22,5.6427]
[1753976426373,3.03,177.25,177.18,4.01691349]
[1753976426374,3.03,177.25,177.23,5.6425]
[1753976427181,3.03,177.25,177.18,10.26515967]
[1753976427385,3.03,177.25,177.18,4.01691349]
[1753976427981,3.03,177.25,177.22,5.6429]
[1753976428785,3.03,177.25,177.21,5.6431]
[1753976429383,3.12,177.24,177.21,5.6431]
[1753976430890,5.6421,177.25,177.22,5.6428]
[1753976431085,3.12,177.23,177.18,4.01691349]
[1753976431287,3.12,177.23,177.18,10.26515967]
[1753976431788,3.12,177.23,177.22,5.6429]
[1753976432792,3.12,177.26,177.23,5.6425]
[1753976433187,3.12,177.26,177.2,4.01691349]
[1753976433391,5.6418,177.26,177.22,5.6427]
[1753976433594,3.12,177.25,177.22,5.6427]
[1753976434092,3.12,177.25,177.23,5.6425]
[1753976434288,3.12,177.25,177.2,4.01691349]
[1753976434993,3.12,177.25,177.19,6.24824618]
[1753976435188,3.12,177.25,177.18,4.01691349]
[1753976435189,3.12,177.25,177.18,10.26515967]
[1753976435583,3.12,177.24,177.2,5.6433]
[1753976436091,3.12,177.24,177.21,5.6432]
[1753976436292,8.7623,177.24,177.18,10.26515967]
[1753976436487,3.12,177.23,177.18,10.26515967]
[1753976436793,3.12,177.23,177.18,6.24824618]
[1753976437092,3.12,177.23,177.18,10.26515967]
[1753976437289,3.12,177.22,177.18,10.26515967]
[1753976437482,3.12,177.26,177.18,10.26515967]
[1753976438090,3.12,177.26,177.18,4.01691349]
[1753976438395,5.6425,177.24,177.19,5.6436]
[1753976438591,3.12,177.23,177.19,5.6436]
[1753976439294,5.6426,177.23,177.19,5.6436]
[1753976439490,3.12,177.22,177.19,5.6436]
[1753976440492,3.12,177.21,177.17,6.24824618]
[1753976440687,7.13691349,177.21,177.15,6.24824618]
[1753976440896,3.12,177.18,177.15,6.24824618]
[1753976442190,3.12,177.18,177.15,11.89324618]
[1753976442396,3.12,177.18,177.15,5.645]
[1753976442590,4.01691349,177.17,177.12,6.24824618]
[1753976442797,4.01691349,177.17,177.1,385.60824618]
[1753976442798,3.12,177.16,177.1,385.60824618]
[1753976442992,3.12,177.16,177.1,6.24824618]
[1753976443692,5.6443,177.18,177.13,5.6455]
[1753976443993,3.12,177.17,177.13,5.6455]
[1753976444893,3.12,177.16,177.13,5.6455]
[1753976445193,3.12,177.15,177.12,5.646]
[1753976445397,3.12,177.15,177.1,6.24824618]
[1753976445596,3.12,177.15,177.09,10.26515967]
[1753976446698,3.12,177.14,177.11,5.6462]
[1753976446897,3.12,177.14,177.09,10.26515967]
[1753976447098,3.12,177.14,177.09,4.01691349]
[1753976447505,3.12,177.14,177.11,4.01691349]
[1753976447696,3.12,177.14,177.12,5.6461]
[1753976447896,3.12,177.13,177.11,4.01691349]
[1753976448200,5.6448,177.16,177.12,5.6459]
[1753976448698,3.12,177.15,177.12,5.6459]
[1753976449092,3.12,177.15,177.11,9.66311349]
[1753976449493,3.12,177.15,177.11,4.01691349]
[1753976449702,3.12,177.15,177.12,5.646]
[1753976450600,3.12,177.14,177.11,9.66311349]
[1753976450799,3.12,177.14,177.11,4.01691349]
[1753976451200,3.12,177.14,177.11,9.66311349]
[1753976451500,3.12,177.14,177.11,4.01691349]
[1753976452202,3.12,177.16,177.11,4.01691349]
[1753976453399,3.12,177.15,177.12,5.6459]
[1753976455094,3.12,177.14,177.11,5.6462]
[1753976455402,3.12,177.13,177.05,43.67189413]
[1753976455590,5.6463,177.12,177.06,6.24824618]
[1753976455790,3.12,177.11,177.05,33.40673446]
[1753976455991,3.12,177.09,177.04,104.42]
[1753976456195,3.12,177.09,177.02,6.24824618]
[1753976456396,8.7671,177.09,177.02,6.24824618]
[1753976456594,3.12,177.08,177.02,6.24824618]
[1753976457503,3.12,177.08,177.02,4.01691349]
[1753976457898,3.12,177.08,177.04,5.6484]
[1753976458394,3.12,177.08,177.02,4.01691349]
[1753976458592,3.28,177.07,177.03,5.6486]
[1753976459306,3.28,177.07,177.04,5.6485]
[1753976459697,3.28,177.07,177.01,4.01691349]
[1753976459900,3.28,177.07,177.04,5.6484]
[1753976460595,3.28,177.07,177.05,5.6482]
[1753976460996,3.28,177.11,177.06,4.01691349]
[1753976461193,5.6459,177.13,177.06,4.01691349]
[1753976461404,3.28,177.1,177.06,4.01691349]
[1753976461607,3.28,177.1,177.09,5.647]
[1753976462403,3.28,177.1,177.06,4.01691349]
[1753976462802,4.01691349,177.09,177.02,4.01691349]
[1753976463102,3.28,177.07,177.0,483.64]
[1753976463300,3.28,177.07,177.0,487.65691349]
[1753976463502,3.28,177.07,177.04,5.6485]
[1753976464008,3.28,177.07,177.01,4.01691349]
[1753976464497,4.01691349,177.13,177.05,4.01691349]
[1753976464701,3.28,177.08,177.07,5.6474]
[1753976464904,3.28,177.1,177.05,4.01691349]
[1753976465100,3.28,177.12,177.05,4.01691349]
[1753976465406,3.28,177.12,177.08,5.6471]
[1753976465795,3.28,177.11,177.07,5.6475]
[1753976466210,3.28,177.11,177.05,4.01691349]
[1753976467505,3.28,177.11,177.08,5.6471]
[1753976468104,3.28,177.14,177.07,4.01691349]
[1753976468601,5.6458,177.13,177.09,5.6467]
[1753976468803,3.28,177.12,177.09,5.6467]
[1753976469309,3.28,177.11,177.08,5.6472]
[1753976469600,3.28,177.11,177.05,4.01691349]
[1753976470305,3.28,177.1,177.07,5.6474]
[1753976471006,3.28,177.1,177.08,5.6473]
[1753976471308,3.28,177.09,177.08,5.6473]
[1753976473811,3.28,177.12,177.05,4.01691349]
[1753976474006,4.01691349,177.11,177.03,108.43691349]
[1753976474310,5.6472,177.09,177.05,5.648]
[1753976474512,3.28,177.08,177.05,5.648]
[1753976475010,3.28,177.08,177.06,5.648]
[1753976475212,3.28,177.08,177.03,108.43691349]
[1753976475512,3.28,177.08,177.03,104.42]
[1753976475710,3.28,177.08,177.04,4.01691349]
[1753976476210,3.28,177.08,177.06,5.6478]
[1753976476413,5.6468,177.1,177.06,5.6478]
[1753976476601,3.28,177.07,177.06,5.6478]
[1753976477612,3.28,177.06,177.05,5.6482]
[1753976478008,3.28,177.08,177.06,5.6477]
[1753976478210,3.28,177.07,177.06,5.6477]
[1753976480205,3.28,177.07,177.0,4.01691349]
[1753976480813,5.6485,177.05,177.02,5.6492]
[1753976481107,3.28,177.04,177.0,4.01691349]
[1753976481305,3.28,177.04,176.99,4.01691349]
[1753976481507,3.28,177.03,177.01,4.01691349]
[1753976481814,3.28,177.13,177.02,4.01691349]
[1753976482009,4.01691349,177.16,177.02,4.01691349]
[1753976482010,3.28,177.09,177.07,4.01691349]
[1753976482308,3.28,177.08,177.07,4.01691349]
[1753976483312,3.28,177.08,177.05,9.66501349]
[1753976483913,3.28,177.08,177.01,6.24824618]
[1753976484113,3.28,177.08,177.02,10.26515967]
[1753976484314,3.28,177.08,177.03,6.24824618]
[1753976484515,3.28,177.09,177.04,4.01691349]
[1753976485410,4.72198043,177.2,177.06,4.01691349]
[1753976485411,3.28,177.08,177.06,4.01691349]
[1753976485715,3.28,177.12,177.05,5.6482]
[1753976485913,3.28,177.12,177.04,4.01691349]
[1753976486314,3.28,177.12,177.04,9.66531349]
[1753976487013,3.28,177.07,177.04,9.66531349]
[1753976487614,3.28,177.08,177.04,4.01691349]
[1753976487809,4.01691349,177.13,177.04,4.01691349]
[1753976488010,3.28,177.12,177.04,4.01691349]
[1753976489716,3.18,177.08,177.05,5.6481]
[1753976490713,3.18,177.07,177.05,5.6481]
[1753976490918,5.6469,177.1,177.05,5.6481]
[1753976491122,3.18,177.06,177.05,5.6481]
[1753976495816,3.18,177.06,177.02,6.24824618]
[1753976496019,4.01691349,177.05,176.99,6.24824618]
[1753976496218,3.18,177.03,177.0,5.6497]
[1753976496625,3.18,177.03,176.99,6.24824618]
[1753976496921,3.18,177.02,176.99,10.26515967]
[1753976497222,3.18,177.06,177.01,4.01691349]
[1753976498111,3.18,177.06,177.03,5.6487]
[1753976498717,3.18,177.05,177.01,4.01691349]
[1753976498921,3.18,177.05,177.0,6.24824618]
[1753976499121,3.18,177.05,176.99,10.26515967]
[1753976499519,3.18,177.04,177.01,5.6494]
[1753976499719,3.18,177.04,177.0,6.24824618]
[1753976500421,3.18,177.04,177.01,6.24824618]
[1753976500718,3.18,177.03,177.02,5.649]
[1753976501023,3.18,177.04,177.01,10.26515967]
[1753976501223,3.18,177.03,177.02,5.649]
[1753976502118,3.18,177.03,176.99,10.26515967]
[1753976502316,3.18,177.03,176.99,6.24824618]
[1753976502516,3.18,177.03,177.0,5.6497]
[1753976502816,3.18,177.03,176.99,6.24824618]
[1753976503126,3.18,177.03,177.0,6.24824618]
[1753976503321,3.18,177.03,177.01,5.6494]
[1753976503716,3.18,177.03,176.99,6.24824618]
[1753976504424,3.18,177.06,177.0,10.26515967]
[1753976504727,3.18,177.06,177.02,4.01691349]
[1753976505317,3.18,177.05,177.02,4.01691349]
[1753976505522,4.01691349,177.11,177.04,4.01691349]
[1753976505822,3.18,177.1,177.06,4.01691349]
[1753976506225,3.18,177.1,177.07,5.6475]
[1753976506424,3.18,177.08,177.07,5.6475]
[1753976507131,4.01691349,177.13,177.06,5.6479]
[1753976507322,3.18,177.1,177.05,4.01691349]
[1753976507528,3.18,177.09,177.07,4.01691349]
[1753976507724,3.18,177.09,177.08,5.6474]
[1753976510326,8.8256,177.14,177.07,4.01691349]
[1753976510621,3.18,177.13,177.09,4.01691349]
[1753976510827,3.18,177.13,177.07,6.24824618]
[1753976511025,3.18,177.12,177.08,4.01691349]
[1753976511220,3.18,177.12,177.06,6.24824618]
[1753976511420,3.18,177.12,177.08,4.01691349]
[1753976512322,3.18,177.12,177.09,5.647]
[1753976513125,3.18,177.12,177.1,5.6467]
[1753976514826,3.18,177.16,177.1,4.01691349]
[1753976515032,3.18,177.16,177.12,4.01691349]
[1753976515324,3.18,177.15,177.12,9.66291349]
[1753976516023,3.18,177.15,177.13,5.6457]
[1753976518120,3.18,177.15,177.14,5.6454]
[1753976518627,3.18,177.15,177.12,4.01691349]
[1753976519029,3.29,177.17,177.09,4.01691349]
[1753976519228,3.29,177.15,177.11,5.6462]
[1753976519429,3.29,177.15,177.09,4.01691349]
[1753976519630,3.29,177.14,177.09,4.01691349]
[1753976519827,7.30691349,177.14,177.08,5.6471]
[1753976520023,3.29,177.13,177.08,5.6471]
[1753976520224,3.29,177.11,177.04,10.26515967]
[1753976520428,3.29,177.11,177.04,4.01691349]
[1753976521724,3.29,177.1,177.06,5.648]
[1753976522125,3.29,177.13,177.08,4.01691349]
[1753976522629,8.936,177.13,177.08,9.66411349]
[1753976522822,3.29,177.12,177.08,9.66411349]
[1753976523028,3.29,177.12,177.08,4.01691349]
[1753976523226,3.29,177.12,177.09,5.647]
[1753976524024,3.29,177.14,177.06,4.01691349]
[1753976524226,3.29,177.12,177.06,4.01691349]
[1753976525630,3.29,177.1,177.07,5.6476]
[1753976525825,3.29,177.1,177.06,4.01691349]
[1753976526027,3.29,177.1,177.08,5.6472]
[1753976527827,3.29,177.11,177.08,5.6472]
[1753976528233,5.6465,177.11,177.08,5.6472]
[1753976528433,3.29,177.1,177.08,5.6472]
[1753976530733,3.29,177.06,177.0,4.01691349]
[1753976531433,3.29,177.05,177.0,4.01691349]
[1753976531831,3.29,177.06,176.98,4.01691349]
[1753976532035,3.29,177.04,176.98,4.01691349]
[1753976532331,8.9388,177.04,177.0,5.6497]
[1753976532527,3.29,177.03,177.0,5.6497]
[1753976532922,8.9391,177.03,177.0,5.6497]
[1753976533135,3.29,177.02,176.96,10.26515967]
[1753976533333,3.29,177.02,176.94,389.78515967]
[1753976533627,4.01691349,177.03,176.94,389.78515967]
[1753976533628,3.29,177.0,176.97,5.6506]
[1753976534634,3.29,176.99,176.97,5.6506]
[1753976535123,3.29,176.99,176.98,5.6505]
[1753976535323,3.29,176.99,176.94,4.01691349]
[1753976536036,3.29,176.99,176.92,10.26515967]
[1753976536333,3.29,176.98,176.92,4.01691349]
[1753976536535,3.29,176.98,176.95,5.6513]
[1753976536736,3.29,176.98,176.92,4.01691349]
[1753976537229,3.29,176.98,176.96,5.6511]
[1753976537731,3.29,176.98,176.95,5.6514]
[1753976538335,5.6506,176.98,176.95,5.6514]
[1753976538634,3.29,176.97,176.94,5.6517]
[1753976538835,8.9411,176.97,176.92,4.01691349]
[1753976539137,3.29,176.96,176.93,5.652]
[1753976539337,3.29,176.96,176.9,81.14682857]
[1753976539534,3.29,176.96,176.9,85.16374206]
[1753976539731,3.29,176.96,176.92,5.6521]
[1753976539932,5.6515,176.95,176.92,5.6521]
[1753976540141,3.29,176.94,176.92,5.6521]
[1753976540338,4.01691349,176.99,176.92,5.6521]
[1753976540639,3.29,176.96,176.93,5.652]
[1753976540937,3.29,176.96,176.94,5.6518]
[1753976541137,3.29,176.98,176.9,85.16374206]
[1753976541435,3.29,176.98,176.93,5.6519]
[1753976541634,3.29,176.98,176.9,85.16374206]
[1753976542033,3.29,176.98,176.94,5.6518]
[1753976542227,5.6509,176.97,176.9,85.16374206]
[1753976542428,3.29,176.96,176.9,85.16374206]
[1753976542931,3.29,176.95,176.9,4.01691349]
[1753976543132,3.29,176.94,176.87,4.01691349]
[1753976543328,3.29,176.94,176.89,4.01691349]
[1753976543536,3.29,176.93,176.89,4.01691349]
[1753976543737,3.29,176.93,176.85,10.26515967]
[1753976543935,3.29,176.93,176.89,4.01691349]
[1753976544235,3.29,176.93,176.91,4.01691349]
[1753976545044,3.29,176.93,176.92,5.6525]
[1753976545934,3.29,177.02,176.91,4.01691349]
[1753976546135,4.01691349,177.03,176.96,4.01691349]
[1753976546347,3.29,176.98,176.96,4.01691349]
[1753976546642,3.29,176.98,176.95,5.6513]
[1753976546943,3.29,176.98,176.92,4.01691349]
[1753976547847,3.29,176.97,176.93,5.652]
[1753976549446,5.6509,176.97,176.93,5.652]
[1753976549645,3.04,176.96,176.93,5.652]
[1753976551749,3.04,176.96,176.94,5.6518]
[1753976552950,3.04,176.96,176.95,5.6515]
[1753976553850,4.01691349,177.03,176.94,4.01691349]
[1753976554049,3.04,176.98,176.94,4.01691349]
[1753976554247,4.01691349,177.03,176.95,5.6512]
[1753976554544,5.6502,177.0,176.94,4.01691349]
[1753976554752,3.04,176.99,176.95,5.6514]
[1753976555350,3.04,176.99,176.94,4.01691349]
[1753976555351,3.04,176.98,176.94,9.66861349]
[1753976556045,3.04,176.98,176.95,5.6514]
[1753976556240,3.04,176.98,176.94,4.01691349]
[1753976556551,5.6506,176.98,176.94,9.66851349]
[1753976556752,3.04,176.97,176.94,9.66851349]
[1753976557052,3.04,176.97,176.95,5.6515]
[1753976557453,3.04,176.97,176.94,4.01691349]
[1753976558050,3.04,176.97,176.94,9.66841349]